fUSD/lending_fUSD_20240422
["ID","MTS","AMOUNT","RATE_DAILY","PERIOD"]
[323229687,1713818063020,-500.0,0.00019178,2]
[323229688,1713818063032,-500.0,0.00019178,2]
[323229689,1713818063045,-152.90480988,0.00019178,2]
[323229690,1713818063058,-500.0,0.00019178,2]
[323229691,1713818063070,-500.0,0.00019178,2]
[323229692,1713818063082,-500.0,0.00019178,2]
[323229693,1713818063094,-500.0,0.00019178,2]
[323229694,1713818063106,-500.0,0.00019178,2]
[323229695,1713818063119,-243.92863797,0.00019178,2]
[323229696,1713818063131,-500.0,0.00019178,2]
[323229697,1713818063143,-500.0,0.00019178,2]
[323229698,1713818063155,-500.0,0.00019178,2]
[323229699,1713818063167,-500.0,0.00019178,2]
[323229700,1713818063179,-500.0,0.00019178,2]
[323229701,1713818063190,-500.0,0.00019178,2]
[323229702,1713818063201,-500.0,0.00019178,2]
[323229703,1713818063213,-609.00082732,0.00019178,2]
[323229704,1713818063225,-500.0,0.00019178,2]
[323229705,1713818063253,-500.0,0.00019178,2]
[323229706,1713818063264,-500.0,0.00019178,2]
[323229707,1713818063275,-500.0,0.00019178,2]
[323229708,1713818063286,-500.0,0.00019178,2]
[323229709,1713818063298,-500.0,0.00019178,2]
[323229710,1713818063311,-500.0,0.00019178,2]
[323229711,1713818063323,-500.0,0.00019178,2]
[323229712,1713818063335,-500.0,0.00019178,2]
[323229713,1713818063348,-500.0,0.00019178,2]
[323229714,1713818063359,-500.0,0.00019178,2]
[323229715,1713818063373,-500.0,0.00019178,2]
[323229716,1713818063384,-500.0,0.00019178,2]
[323229717,1713818063396,-500.0,0.00019178,2]
[323229718,1713818063408,-500.0,0.00019178,2]
[323229719,1713818063420,-500.0,0.00019178,2]
[323229720,1713818063432,-500.0,0.00019178,2]
[323229721,1713818063444,-500.0,0.00019178,2]
[323229722,1713818063455,-500.0,0.00019178,2]
[323229723,1713818063466,-500.0,0.00019178,2]
[323229724,1713818063478,-500.0,0.00019178,2]
[323229725,1713818063489,-500.0,0.00019178,2]
[323229726,1713818063501,-500.0,0.00019178,2]
[323229727,1713818063513,-500.0,0.00019178,2]
[323229728,1713818063524,-500.0,0.00019178,2]
[323229729,1713818063536,-500.0,0.00019178,2]
[323229730,1713818063547,-500.0,0.00019178,2]
[323229731,1713818063559,-500.0,0.00019178,2]
[323229732,1713818063571,-500.0,0.00019178,2]
[323229733,1713818063583,-500.0,0.00019178,2]
[323229734,1713818063595,-500.0,0.00019178,2]
[323229735,1713818063607,-500.0,0.00019178,2]
[323229736,1713818063620,-500.0,0.00019178,2]
[323229737,1713818063632,-500.0,0.00019178,2]
[323229738,1713818063644,-581.87573121,0.00019178,2]
[323229739,1713818063655,-500.0,0.00019178,2]
[323229740,1713818063666,-500.0,0.00019178,2]
[323229741,1713818063678,-500.0,0.00019178,2]
[323229742,1713818063689,-500.0,0.00019178,2]
[323229743,1713818063701,-500.0,0.00019178,2]
[323229744,1713818063712,-500.0,0.00019178,2]
[323229745,1713818063723,-500.0,0.00019178,2]
[323229746,1713818063735,-500.0,0.00019178,2]
[323229747,1713818063747,-500.0,0.00019178,2]
[323229748,1713818063758,-500.0,0.00019178,2]
[323229749,1713818063771,-23080.38810115,0.00019178,2]
[323229750,1713818063783,-500.0,0.00019178,2]
[323229751,1713818063796,-500.0,0.00019178,2]
[323229752,1713818063808,-23080.38810115,0.00019178,2]
[323229753,1713818063819,-500.0,0.00019178,2]
[323229754,1713818063832,-500.0,0.00019178,2]
[323229755,1713818063844,-23080.38810115,0.00019178,2]
[323229756,1713818063855,-500.0,0.00019178,2]
[323229757,1713818063868,-500.0,0.00019178,2]
[323229758,1713818063880,-500.0,0.00019178,2]
[323229759,1713818063892,-500.0,0.00019178,2]
[323229760,1713818063908,-500.0,0.00019178,2]
[323229761,1713818063920,-500.0,0.00019178,2]
[323229762,1713818063932,-500.0,0.00019178,2]
[323229763,1713818063945,-500.0,0.00019178,2]
[323229764,1713818063958,-500.0,0.00019178,2]
[323229765,1713818063970,-500.0,0.00019178,2]
[323229766,1713818063983,-500.0,0.00019178,2]
[323229767,1713818063995,-200.0,0.00019178,2]
[323229768,1713818064006,-500.0,0.00019178,2]
[323229769,1713818064018,-500.0,0.00019178,2]
[323229770,1713818064030,-500.0,0.00019178,2]
[323229771,1713818064041,-500.0,0.00019178,2]
[323229772,1713818064052,-500.0,0.00019178,2]
[323229773,1713818064064,-500.0,0.00019178,2]
[323229774,1713818064076,-500.0,0.00019178,2]
[323229775,1713818064088,-500.0,0.00019178,2]
[323229776,1713818064101,-500.0,0.00019178,2]
[323229777,1713818064112,-500.0,0.00019178,2]
[323229778,1713818064126,-500.0,0.00019178,2]
[323229779,1713818064138,-500.0,0.00019178,2]
[323229780,1713818064150,-500.0,0.00019178,2]
[323229781,1713818064161,-500.0,0.00019178,2]
[323229782,1713818064173,-500.0,0.00019178,2]
[323229783,1713818064184,-500.0,0.00019178,2]
[323229784,1713818064196,-500.0,0.00019178,2]
[323229785,1713818064207,-500.0,0.00019178,2]
[323229786,1713818064219,-500.0,0.00019178,2]
[323229787,1713818064231,-500.0,0.00019178,2]
[323229788,1713818064243,-500.0,0.00019178,2]
[323229789,1713818064255,-500.0,0.00019178,2]
[323229790,1713818064267,-500.0,0.00019178,2]
[323229791,1713818064285,-500.0,0.00019178,2]
[323229792,1713818064298,-500.0,0.00019178,2]
[323229793,1713818064311,-324.29754645,0.00019178,2]
[323229794,1713818064323,-500.0,0.00019178,2]
[323229795,1713818064336,-500.0,0.00019178,2]
[323229796,1713818064349,-1058.97,0.00019178,2]
[323229797,1713818064361,-613.72,0.00019178,2]
[323229798,1713818064375,-540.41,0.00019178,2]
[323229799,1713818064387,-1669.03,0.00019178,2]
[323229800,1713818064399,-1371.14,0.00019178,2]
[323229801,1713818064411,-776.94,0.00019178,2]
[323229802,1713818064422,-587.95,0.00019178,2]
[323229803,1713818064435,-1126.73,0.00019178,2]
[323229804,1713818064447,-1027.81,0.00019178,2]
[323229805,1713818064458,-895.63,0.00019178,2]
[323229806,1713818064470,-500.0,0.00019178,2]
[323229807,1713818064482,-560.73,0.00019178,2]
[323229808,1713818064494,-541.08,0.00019178,2]
[323229809,1713818064507,-322.90753279,0.00019178,2]
[323229810,1713818064519,-706.11,0.00019178,2]
[323229811,1713818064532,-629.02,0.00019178,2]
[323229812,1713818064544,-584.95,0.00019178,2]
[323229813,1713818064556,-1117.61,0.00019178,2]
[323229814,1713818064568,-1070.74,0.00019178,2]
[323229815,1713818064581,-648.48638055,0.00019178,2]
[323229816,1713818064592,-1292.86,0.00019178,2]
[323229817,1713818064604,-895.28,0.00019178,2]
[323229818,1713818064618,-1409.26,0.00019178,2]
[323229819,1713818064630,-627.63,0.00019178,2]
[323229820,1713818064642,-1508.56,0.00019178,2]
[323229821,1713818064657,-1031.2,0.00019178,2]
[323229822,1713818064670,-500.0,0.00019178,2]
[323229823,1713818064682,-500.0,0.00019178,2]
[323229824,1713818064693,-632.96,0.00019178,2]
[323229825,1713818064706,-718.9,0.00019178,2]
[323229826,1713818064718,-969.56,0.00019178,2]
[323229827,1713818064730,-500.0,0.00019178,2]
[323229828,1713818064742,-1375.45,0.00019178,2]
[323229829,1713818064754,-1338.67,0.00019178,2]
[323229830,1713818064767,-643.12,0.00019178,2]
[323229831,1713818064779,-1299.86,0.00019178,2]
[323229832,1713818064791,-1086.66,0.00019178,2]
[323229833,1713818064804,-1120.16,0.00019178,2]
[323229834,1713818064816,-960.06,0.00019178,2]
[323229835,1713818064828,-534.21,0.00019178,2]
[323229836,1713818064841,-500.0,0.00019178,2]
[323229837,1713818064853,-753.19,0.00019178,2]
[323229838,1713818064865,-811.84,0.00019178,2]
[323229839,1713818064877,-1092.53,0.00019178,2]
[323229840,1713818064890,-546.54,0.00019178,2]
[323229841,1713818064906,-1749.53,0.00019178,2]
[323229842,1713818064919,-1083.17,0.00019178,2]
[323229843,1713818064935,-953.67,0.00019178,2]
[323229844,1713818064948,-1474.11,0.00019178,2]
[323229845,1713818064960,-1939.69,0.00019178,2]
[323229846,1713818064973,-1150.37,0.00019178,2]
[323229847,1713818064986,-1191.57,0.00019178,2]
[323229848,1713818064998,-873.37,0.00019178,2]
[323229849,1713818065011,-548.01,0.00019178,2]
[323229850,1713818065024,-1713.21,0.00019178,2]
[323229851,1713818065038,-860.95,0.00019178,2]
[323229852,1713818065050,-583.38,0.00019178,2]
[323229853,1713818065063,-983.83,0.00019178,2]
[323229854,1713818065075,-778.64,0.00019178,2]
[323229855,1713818065087,-848.86,0.00019178,2]
[323229856,1713818065099,-1645.42,0.00019178,2]
[323229857,1713818065112,-991.23,0.00019178,2]
[323229858,1713818065125,-919.27,0.00019178,2]
[323229859,1713818065137,-650.08,0.00019178,2]
[323229860,1713818065149,-849.94,0.00019178,2]
[323229861,1713818065161,-965.68,0.00019178,2]
[323229862,1713818065172,-648.35,0.00019178,2]
[323229863,1713818065184,-653.61,0.00019178,2]
[323229864,1713818065196,-849.99,0.00019178,2]
[323229865,1713818065208,-872.51,0.00019178,2]
[323229866,1713818065221,-883.24,0.00019178,2]
[323229867,1713818065233,-1446.77,0.00019178,2]
[323229868,1713818065246,-668.79,0.00019178,2]
[323229869,1713818065258,-1711.08,0.00019178,2]
[323229870,1713818065270,-586.1,0.00019178,2]
[323229871,1713818065283,-643.67,0.00019178,2]
[323229872,1713818065295,-1611.58,0.00019178,2]
[323229873,1713818065308,-710.31,0.00019178,2]
[323229874,1713818065320,-1122.42,0.00019178,2]
[323229875,1713818065332,-585.05,0.00019178,2]
[323229876,1713818065343,-844.75,0.00019178,2]
[323229877,1713818065355,-941.73,0.00019178,2]
[323229878,1713818066571,-758.68,0.00019178,2]
[323229879,1713818066585,-1156.31,0.00019178,2]
[323229880,1713818066595,-905.56,0.00019178,2]
[323229881,1713818066605,-1225.61,0.00019178,2]
[323229882,1713818066615,-762.49,0.00019178,2]
[323229883,1713818066626,-580.72,0.00019178,2]
[323229884,1713818066636,-1207.15,0.00019178,2]
[323229885,1713818066647,-847.4,0.00019178,2]
[323229886,1713818066657,-889.65,0.00019178,2]
[323229887,1713818066668,-1458.35,0.00019178,2]
[323229888,1713818066678,-1857.12,0.00019178,2]
[323229889,1713818066688,-1346.71,0.00019178,2]
[323229890,1713818066698,-1384.06,0.00019178,2]
[323229891,1713818066708,-797.75,0.00019178,2]
[323229892,1713818066719,-838.1,0.00019178,2]
[323229893,1713818066729,-666.81,0.00019178,2]
[323229894,1713818066740,-500.0,0.00019178,2]
[323229895,1713818066751,-515.46,0.00019178,2]
[323229896,1713818066761,-562.19,0.00019178,2]
[323229897,1713818066771,-1234.42,0.00019178,2]
[323229898,1713818066781,-1329.82,0.00019178,2]
[323229899,1713818066790,-982.2,0.00019178,2]
[323229900,1713818066800,-500.0,0.00019178,2]
[323229901,1713818066811,-2343.61,0.00019178,2]
[323229902,1713818066822,-1458.64,0.00019178,2]
[323229903,1713818066833,-847.85,0.00019178,2]
[323229904,1713818066844,-500.0,0.00019178,2]
[323229905,1713818066855,-1545.79,0.00019178,2]
[323229906,1713818066865,-3597.84,0.00019178,2]
[323229907,1713818066877,-715.1,0.00019178,2]
[323229908,1713818066888,-1489.81,0.00019178,2]
[323229909,1713818066900,-1733.17,0.00019178,2]
[323229910,1713818066911,-1331.5,0.00019178,2]
[323229911,1713818066922,-1524.01,0.00019178,2]
[323229912,1713818066932,-1445.52,0.00019178,2]
[323229913,1713818066943,-521.23,0.00019178,2]
[323229914,1713818066954,-1681.34,0.00019178,2]
[323229915,1713818066965,-1162.45,0.00019178,2]
[323229916,1713818066976,-619.96,0.00019178,2]
[323229917,1713818066988,-1395.37,0.00019178,2]
[323229918,1713818066998,-255.26,0.00019178,2]
[323229919,1713818067008,-500.0,0.00019178,2]
[323229920,1713818067018,-850.51,0.00019178,2]
[323229921,1713818067027,-651.79,0.00019178,2]
[323229922,1713818067036,-1280.9,0.00019178,2]
[323229923,1713818067046,-1459.47,0.00019178,2]
[323229924,1713818067055,-608.9539872,0.00019178,2]
[323229925,1713818067064,-538.6,0.00019178,2]
[323229926,1713818067074,-534.9,0.00019178,2]
[323229927,1713818067084,-537.01,0.00019178,2]
[323229928,1713818067093,-514.88,0.00019178,2]
[323229929,1713818067103,-1610.79,0.00019178,2]
[323229930,1713818067112,-1363.17,0.00019178,2]
[323229931,1713818067123,-786.16,0.00019178,2]
[323229932,1713818067133,-746.38,0.00019178,2]
[323229933,1713818067142,-788.48,0.00019178,2]
[323229934,1713818067152,-306.39465502,0.00019178,2]
[323229935,1713818067162,-1371.5,0.00019178,2]
[323229936,1713818067171,-572.35,0.00019178,2]
[323229937,1713818067180,-1080.61,0.00019178,2]
[323229938,1713818067190,-1639.44,0.00019178,2]
[323229939,1713818067200,-927.48,0.00019178,2]
[323229940,1713818067209,-1053.33,0.00019178,2]
[323229941,1713818067219,-2417.44,0.00019178,2]
[323229942,1713818067228,-820.45,0.00019178,2]
[323229943,1713818067245,-616.6,0.00019178,2]
[323229944,1713818067255,-1496.35,0.00019178,2]
[323229945,1713818067265,-1901.34,0.00019178,2]
[323229946,1713818067274,-1504.69,0.00019178,2]
[323229947,1713818067284,-531.85,0.00019178,2]
[323229948,1713818067293,-1164.49,0.00019178,2]
[323229949,1713818067303,-1596.3,0.00019178,2]
[323229950,1713818067312,-1438.6,0.00019178,2]
[323229951,1713818067321,-1493.64,0.00019178,2]
[323229952,1713818067331,-270.80054412,0.00019178,2]
[323229953,1713818067340,-889.74,0.00019178,2]
[323229954,1713818067350,-693.72,0.00019178,2]
[323229955,1713818067360,-549.16,0.00019178,2]
[323229956,1713818067371,-1184.52,0.00019178,2]
[323229957,1713818067383,-1024.32,0.00019178,2]
[323229958,1713818067392,-1243.7,0.00019178,2]
[323229959,1713818067401,-675.02,0.00019178,2]
[323229960,1713818067411,-2073.0,0.00019178,2]
[323229961,1713818067421,-1245.39,0.00019178,2]
[323229962,1713818067432,-1364.07,0.00019178,2]
[323229963,1713818067443,-1296.17,0.00019178,2]
[323229964,1713818067453,-785.15,0.00019178,2]
[323229965,1713818067464,-1343.23,0.00019178,2]
[323229966,1713818067475,-1627.92,0.00019178,2]
[323229967,1713818067486,-1215.57,0.00019178,2]
[323229968,1713818067496,-1663.91,0.00019178,2]
[323229969,1713818067506,-359.09761905,0.00019178,2]
[323229970,1713818067517,-1208.61,0.00019178,2]
[323229971,1713818067528,-1496.62,0.00019178,2]
[323229972,1713818067538,-781.7,0.00019178,2]
[323229973,1713818067549,-1013.21,0.00019178,2]
[323229974,1713818067560,-1291.68,0.00019178,2]
[323229975,1713818067571,-1167.1,0.00019178,2]
[323229976,1713818067581,-636.48,0.00019178,2]
[323229977,1713818067591,-979.58,0.00019178,2]
[323229978,1713818067601,-1192.84,0.00019178,2]
[323229979,1713818067611,-507.91,0.00019178,2]
[323229980,1713818067622,-1367.4,0.00019178,2]
[323229981,1713818067633,-525.05,0.00019178,2]
[323229982,1713818067643,-1643.75,0.00019178,2]
[323229983,1713818067654,-1037.47,0.00019178,2]
[323229984,1713818067665,-535.15,0.00019178,2]
[323229985,1713818067677,-1478.09,0.00019178,2]
[323229986,1713818067687,-504.89,0.00019178,2]
[323229987,1713818067698,-500.0,0.00019178,2]
[323229988,1713818067709,-751.72,0.00019178,2]
[323229989,1713818067720,-627.98,0.00019178,2]
[323229990,1713818067731,-1578.31,0.00019178,2]
[323229991,1713818067741,-849.45,0.00019178,2]
[323229992,1713818067753,-1198.94,0.00019178,2]
[323229993,1713818067765,-2383.31,0.00019178,2]
[323229994,1713818067778,-2746.92,0.00019178,2]
[323229995,1713818067791,-1045.49,0.00019178,2]
[323229996,1713818067802,-1276.4,0.00019178,2]
[323229997,1713818067812,-1072.72,0.00019178,2]
[323229998,1713818067822,-500.0,0.00019178,2]
[323229999,1713818067833,-3284.68,0.00019178,2]
[323230000,1713818067843,-2296.08,0.00019178,2]
[323230001,1713818067855,-1106.72,0.00019178,2]
[323230002,1713818067866,-851.02,0.00019178,2]
[323230003,1713818067878,-1445.62,0.00019178,2]
[323230004,1713818067888,-788.12,0.00019178,2]
[323230005,1713818067899,-1533.64,0.00019178,2]
[323230006,1713818067912,-1657.26,0.00019178,2]
[323230007,1713818067924,-2404.29,0.00019178,2]
[323230008,1713818067935,-2538.83,0.00019178,2]
[323230009,1713818067948,-1596.02,0.00019178,2]
[323230010,1713818067959,-552.91,0.00019178,2]
[323230011,1713818067970,-1577.46,0.00019178,2]
[323230012,1713818067984,-1894.81,0.00019178,2]
[323230013,1713818067997,-2000.81,0.00019178,2]
[323230014,1713818068006,-1468.28,0.00019178,2]
[323230015,1713818068017,-1219.08,0.00019178,2]
[323230016,1713818068027,-881.21,0.00019178,2]
[323230017,1713818068036,-595.04,0.00019178,2]
[323230018,1713818068047,-533.19,0.00019178,2]
[323230019,1713818068057,-2218.86,0.00019178,2]
[323230020,1713818068068,-934.67,0.00019178,2]
[323230021,1713818068078,-525.62,0.00019178,2]
[323230022,1713818068087,-702.91,0.00019178,2]
[323230023,1713818068098,-3676.74,0.00019178,2]
[323230024,1713818068107,-548.67,0.00019178,2]
[323230025,1713818068119,-2497.52,0.00019178,2]
[323230026,1713818068131,-1527.36,0.00019178,2]
[323230027,1713818068141,-1077.98,0.00019178,2]
[323230028,1713818068151,-1214.09,0.00019178,2]
[323230029,1713818068161,-960.51,0.00019178,2]
[323230030,1713818068171,-1969.14,0.00019178,2]
[323230031,1713818068181,-1706.31,0.00019178,2]
[323230032,1713818068191,-1099.35,0.00019178,2]
[323230033,1713818068201,-1214.51,0.00019178,2]
[323230034,1713818068211,-837.97,0.00019178,2]
[323230035,1713818068221,-1339.69,0.00019178,2]
[323230036,1713818068230,-2687.48,0.00019178,2]
[323230037,1713818068240,-1917.71,0.00019178,2]
[323230038,1713818068249,-500.0,0.00019178,2]
[323230039,1713818068259,-795.76,0.00019178,2]
[323230040,1713818068269,-1253.15,0.00019178,2]
[323230041,1713818068278,-755.1,0.00019178,2]
[323230042,1713818068288,-1479.38,0.00019178,2]
[323230043,1713818068297,-500.0,0.00019178,2]
[323230044,1713818068307,-705.28,0.00019178,2]
[323230045,1713818068317,-856.04,0.00019178,2]
[323230046,1713818068326,-946.21,0.00019178,2]
[323230047,1713818068337,-1065.24,0.00019178,2]
[323230048,1713818068348,-1085.95,0.00019178,2]
[323230049,1713818068357,-586.95,0.00019178,2]
[323230050,1713818068367,-3909.96,0.00019178,2]
[323230051,1713818068378,-806.76,0.00019178,2]
[323230052,1713818068388,-1254.05,0.00019178,2]
[323230053,1713818068397,-1335.71,0.00019178,2]
[323230054,1713818068406,-956.54,0.00019178,2]
[323230055,1713818068416,-1092.89,0.00019178,2]
[323230056,1713818068425,-1047.55,0.00019178,2]
[323230057,1713818068435,-1318.24,0.00019178,2]
[323230058,1713818068445,-605.32,0.00019178,2]
[323230059,1713818068454,-1295.55,0.00019178,2]
[323230060,1713818068463,-2338.02,0.00019178,2]
[323230061,1713818068472,-633.15,0.00019178,2]
[323230062,1713818068482,-2415.41,0.00019178,2]
[323230063,1713818068491,-1073.37,0.00019178,2]
[323230064,1713818068500,-630.63,0.00019178,2]
[323230065,1713818068509,-723.42,0.00019178,2]
[323230066,1713818068519,-988.41,0.00019178,2]
[323230067,1713818068528,-1045.44,0.00019178,2]
[323230068,1713818068537,-2293.72,0.00019178,2]
[323230069,1713818068546,-1265.46,0.00019178,2]
[323230070,1713818068556,-561.76,0.00019178,2]
[323230071,1713818068565,-648.54,0.00019178,2]
[323230072,1713818068575,-754.54,0.00019178,2]
[323230073,1713818068584,-1423.76,0.00019178,2]
[323230074,1713818068594,-766.12,0.00019178,2]
[323230075,1713818068603,-1066.26,0.00019178,2]
[323230076,1713818068612,-730.36,0.00019178,2]
[323230077,1713818068622,-1476.18,0.00019178,2]
[323230078,1713818068632,-630.54,0.00019178,2]
[323230079,1713818068642,-1555.08,0.00019178,2]
[323230080,1713818068652,-1064.89,0.00019178,2]
[323230081,1713818068661,-1952.11,0.00019178,2]
[323230082,1713818068670,-909.66,0.00019178,2]
[323230083,1713818068679,-500.0,0.00019178,2]
[323230084,1713818068689,-801.08,0.00019178,2]
[323230085,1713818068698,-2542.4,0.00019178,2]
[323230086,1713818068708,-1323.06,0.00019178,2]
[323230087,1713818068718,-1009.86,0.00019178,2]
[323230088,1713818068727,-580.66,0.00019178,2]
[323230089,1713818068737,-996.9,0.00019178,2]
[323230090,1713818068747,-685.24,0.00019178,2]
[323230091,1713818068757,-751.49,0.00019178,2]
[323230092,1713818068767,-1254.19,0.00019178,2]
[323230093,1713818068777,-4409.84,0.00019178,2]
[323230094,1713818068788,-513.13,0.00019178,2]
[323230095,1713818068799,-860.39,0.00019178,2]
[323230096,1713818068808,-605.11,0.00019178,2]
[323230097,1713818068819,-1437.23,0.00019178,2]
[323230098,1713818068830,-794.18,0.00019178,2]
[323230099,1713818068840,-1024.83,0.00019178,2]
[323230100,1713818068850,-1182.95,0.00019178,2]
[323230101,1713818068859,-1314.8,0.00019178,2]
[323230102,1713818068870,-983.81,0.00019178,2]
[323230103,1713818068881,-1869.66,0.00019178,2]
[323230104,1713818068891,-914.73,0.00019178,2]
[323230105,1713818068905,-876.01,0.00019178,2]
[323230106,1713818068914,-878.84,0.00019178,2]
[323230107,1713818068924,-541.31,0.00019178,2]
[323230108,1713818068934,-894.0,0.00019178,2]
[323230109,1713818069084,-2061.61,0.00019178,2]
[323230110,1713818069093,-1124.13,0.00019178,2]
[323230111,1713818069103,-1403.67,0.00019178,2]
[323230112,1713818069113,-1325.09,0.00019178,2]
[323230113,1713818069124,-775.89,0.00019178,2]
[323230114,1713818069134,-1196.82,0.00019178,2]
[323230115,1713818069143,-1451.51,0.00019178,2]
[323230116,1713818069153,-1680.65,0.00019178,2]
[323230117,1713818069162,-1636.05,0.00019178,2]
[323230118,1713818069172,-922.47,0.00019178,2]
[323230119,1713818069182,-1211.22,0.00019178,2]
[323230120,1713818069191,-725.28,0.00019178,2]
[323230121,1713818069201,-816.4,0.00019178,2]
[323230122,1713818069210,-1131.8,0.00019178,2]
[323230123,1713818069219,-754.42,0.00019178,2]
[323230124,1713818069231,-526.67,0.00019178,2]
[323230125,1713818069241,-1402.5,0.00019178,2]
[323230126,1713818069251,-500.0,0.00019178,2]
[323230127,1713818069261,-532.25,0.00019178,2]
[323230128,1713818069271,-787.9,0.00019178,2]
[323230129,1713818069281,-559.84,0.00019178,2]
[323230130,1713818069290,-1069.11,0.00019178,2]
[323230131,1713818069300,-1256.58,0.00019178,2]
[323230132,1713818069309,-628.34,0.00019178,2]
[323230133,1713818069319,-624.97,0.00019178,2]
[323230134,1713818069328,-1450.35,0.00019178,2]
[323230135,1713818069337,-1359.54,0.00019178,2]
[323230136,1713818069347,-1806.23,0.00019178,2]
[323230137,1713818069357,-502.81,0.00019178,2]
[323230138,1713818069366,-1191.78,0.00019178,2]
[323230139,1713818069377,-888.12,0.00019178,2]
[323230140,1713818069387,-578.9,0.00019178,2]
[323230141,1713818069396,-1855.61,0.00019178,2]
[323230142,1713818069405,-583.38,0.00019178,2]
[323230143,1713818069415,-1313.44,0.00019178,2]
[323230144,1713818069424,-1448.43,0.00019178,2]
[323230145,1713818069434,-1028.72,0.00019178,2]
[323230146,1713818069444,-595.0,0.00019178,2]
[323230147,1713818069453,-547.89,0.00019178,2]
[323230148,1713818069463,-1641.26,0.00019178,2]
[323230149,1713818069472,-1768.32,0.00019178,2]
[323230150,1713818069484,-3339.2,0.00019178,2]
[323230151,1713818069493,-668.1,0.00019178,2]
[323230152,1713818069502,-863.77,0.00019178,2]
[323230153,1713818069512,-1124.07,0.00019178,2]
[323230154,1713818069522,-572.44530536,0.00019178,2]
[323230155,1713818069531,-557.13,0.00019178,2]
[323230156,1713818069541,-562.12,0.00019178,2]
[323230157,1713818069550,-840.96,0.00019178,2]
[323230158,1713818069559,-816.6,0.00019178,2]
[323230159,1713818069570,-811.15,0.00019178,2]
[323230160,1713818069579,-1876.65,0.00019178,2]
[323230161,1713818069588,-1275.39,0.00019178,2]
[323230162,1713818069598,-1082.13,0.00019178,2]
[323230163,1713818069607,-1247.63,0.00019178,2]
[323230164,1713818069617,-754.66,0.00019178,2]
[323230165,1713818069628,-1190.54,0.00019178,2]
[323230166,1713818069637,-2584.59,0.00019178,2]
[323230167,1713818069646,-3329.52,0.00019178,2]
[323230168,1713818069654,-1169.33,0.00019178,2]
[323230169,1713818069664,-621.96,0.00019178,2]
[323230170,1713818069672,-500.0,0.00019178,2]
[323230171,1713818069681,-845.41,0.00019178,2]
[323230172,1713818069690,-755.77,0.00019178,2]
[323230173,1713818069699,-973.92,0.00019178,2]
[323230174,1713818069708,-1019.33,0.00019178,2]
[323230175,1713818069717,-549.92,0.00019178,2]
[323230176,1713818069726,-500.0,0.00019178,2]
[323230177,1713818069736,-1233.41,0.00019178,2]
[323230178,1713818069745,-524.29,0.00019178,2]
[323230179,1713818069755,-730.26,0.00019178,2]
[323230180,1713818069764,-1250.58,0.00019178,2]
[323230181,1713818069774,-2886.05,0.00019178,2]
[323230182,1713818069783,-590.06,0.00019178,2]
[323230183,1713818069792,-1827.41,0.00019178,2]
[323230184,1713818069802,-744.02,0.00019178,2]
[323230185,1713818069812,-1751.5,0.00019178,2]
[323230186,1713818069822,-1054.98,0.00019178,2]